[Event "Titled Tuesday Blitz May 2 Late 2023"]
[White "Batsiashvili, Nino"]
[Black "Korchmar, Vasiliy"]
[WhiteFideId "13602993"]
[BlackFideId "24131750"]
[WhiteElo "2231"]
[BlackElo "2370"]
[Result "1/2-1/2"]
[Round "01"]
[TimeControl "180+2"]
[Date "2023.05.02"]
[WhiteClock "0:00:00"]
[BlackClock "0:00:00"]

1. d4 {[%clk 0:00:01]}  d5 {[%clk 0:00:01]} 2. c4 {[%clk 0:00:01]}  c6 {[%clk 0:00:01]} 3. Nf3 {[%clk 0:00:01]}  Nf6 {[%clk 0:00:01]} 4. g3 {[%clk 0:00:01]}  Bf5 {[%clk 0:00:01]} 5. Bg2 {[%clk 0:00:01]}  e6 {[%clk 0:00:01]} 6. O-O {[%clk 0:00:01]}  Nbd7 {[%clk 0:00:01]} 7. Nc3 {[%clk 0:00:01]}  dxc4 {[%clk 0:00:01]} 8. Nh4 {[%clk 0:00:01]}  Bg4 {[%clk 0:00:01]} 9. h3 {[%clk 0:00:01]}  Bh5 {[%clk 0:00:01]} 10. b3 {[%clk 0:00:01]}  cxb3 {[%clk 0:00:01]} 11. Qxb3 {[%clk 0:00:01]}  Qb6 {[%clk 0:00:01]} 12. Rd1 {[%clk 0:00:01]}  Be7 {[%clk 0:00:01]} 13. g4 {[%clk 0:00:01]}  Bg6 {[%clk 0:00:01]} 14. Nxg6 {[%clk 0:00:01]}  hxg6 {[%clk 0:00:01]} 15. e4 {[%clk 0:00:01]}  O-O {[%clk 0:00:01]} 16. Be3 {[%clk 0:00:01]}  Qxb3 {[%clk 0:00:01]} 17. axb3 {[%clk 0:00:01]}  Nb6 {[%clk 0:00:01]} 18. d5 {[%clk 0:00:01]}  cxd5 {[%clk 0:00:01]} 19. exd5 {[%clk 0:00:01]}  exd5 {[%clk 0:00:00]} 20. Bxb6 {[%clk 0:00:01]}  axb6 {[%clk 0:00:00]} 21. Rxa8 {[%clk 0:00:01]}  Rxa8 {[%clk 0:00:00]} 22. Nxd5 {[%clk 0:00:01]}  Nxd5 {[%clk 0:00:00]} 23. Bxd5 {[%clk 0:00:01]}  Ra2 {[%clk 0:00:00]} 24. Rd3 {[%clk 0:00:00]}  Kf8 {[%clk 0:00:00]} 25. Bxb7 {[%clk 0:00:00]}  Bc5 {[%clk 0:00:00]} 26. Rf3 {[%clk 0:00:00]}  g5 {[%clk 0:00:00]} 27. Bd5 {[%clk 0:00:00]}  f6 {[%clk 0:00:00]} 28. Kg2 {[%clk 0:00:00]}  Rd2 {[%clk 0:00:00]} 29. Bc4 {[%clk 0:00:00]}  Ke7 {[%clk 0:00:00]} 30. Bg8 {[%clk 0:00:00]}  Rb2 {[%clk 0:00:00]} 31. Bc4 {[%clk 0:00:00]}  Kd6 {[%clk 0:00:00]} 32. Bf7 {[%clk 0:00:00]}  Ke5 {[%clk 0:00:00]} 33. Bg8 {[%clk 0:00:00]}  b5 {[%clk 0:00:00]} 34. Bf7 {[%clk 0:00:00]}  b4 {[%clk 0:00:00]} 35. Bc4 {[%clk 0:00:00]}  Bd4 {[%clk 0:00:00]} 36. Bg8 {[%clk 0:00:00]}  Ke4 {[%clk 0:00:00]} 37. Bh7+ {[%clk 0:00:00]}  Ke5 {[%clk 0:00:00]} 38. Bg8 {[%clk 0:00:00]}  Kd6 {[%clk 0:00:00]} 39. Bc4 {[%clk 0:00:00]}  Kc5 {[%clk 0:00:00]} 40. Bf7 {[%clk 0:00:00]}  Be5 {[%clk 0:00:00]} 41. Bg8 {[%clk 0:00:00]}  Rd2 {[%clk 0:00:00]} 42. Bf7 {[%clk 0:00:00]}  Kd4 {[%clk 0:00:00]} 43. Bg8 {[%clk 0:00:00]}  Bf4 {[%clk 0:00:00]} 44. Bf7 {[%clk 0:00:00]}  Ra2 {[%clk 0:00:00]} 45. Bg8 {[%clk 0:00:00]}  Bd2 {[%clk 0:00:00]} 46. Be6 {[%clk 0:00:00]}  Bc3 {[%clk 0:00:00]} 47. Bf7 {[%clk 0:00:00]}  Ke5 {[%clk 0:00:00]} 48. Bg8 {[%clk 0:00:00]}  Bd4 {[%clk 0:00:00]} 49. Bf7 {[%clk 0:00:00]}  Ra7 {[%clk 0:00:00]} 50. Bc4 {[%clk 0:00:00]}  Rc7 {[%clk 0:00:00]} 51. Bg8 {[%clk 0:00:00]}  Rc8 {[%clk 0:00:00]} 52. Bf7 {[%clk 0:00:00]}  Rc6 {[%clk 0:00:00]} 53. Bg8 {[%clk 0:00:00]}  g6 {[%clk 0:00:00]} 54. Bf7 {[%clk 0:00:00]}  f5 {[%clk 0:00:00]} 55. gxf5 {[%clk 0:00:00]}  gxf5 {[%clk 0:00:00]} 56. Bg8 {[%clk 0:00:00]}  Rc2 {[%clk 0:00:00]} 57. Rxf5+ {[%clk 0:00:00]}  Kxf5 {[%clk 0:00:00]} 58. Bh7+ {[%clk 0:00:00]}  Kf4 {[%clk 0:00:00]} 59. Bxc2 {[%clk 0:00:00]}  Bc5 {[%clk 0:00:00]} 60. Bd3 {[%clk 0:00:00]}  Bd4 {[%clk 0:00:00]} 61. Bc4 {[%clk 0:00:00]}  Bc5 {[%clk 0:00:00]} 62. Bd5 {[%clk 0:00:00]}  Bd4 {[%clk 0:00:00]} 63. Bc4 {[%clk 0:00:00]}  Bc5 {[%clk 0:00:00]} 64. Bd5 {[%clk 0:00:00]}  Bd4 {[%clk 0:00:00]} 65. Bf7 {[%clk 0:00:00]}  Bc5 {[%clk 0:00:00]} 66. Bc4 {[%clk 0:00:00]}  Bd4 {[%clk 0:00:00]} 67. Bd5 {[%clk 0:00:00]}  Bc5 {[%clk 0:00:00]} 1/2-1/2


[Site "https://www.chess.com"]

[Event "Titled Tuesday Blitz May 2 Late 2023"]
[White "Vaglio Munoz, Jaime"]
[Black "Rosen, Eric"]
[WhiteFideId "6500145"]
[BlackFideId "2032562"]
[WhiteElo "2199"]
[BlackElo "2331"]
[Result "0-1"]
[Round "01"]
[TimeControl "180+2"]
[Date "2023.05.02"]
[WhiteClock "0:00:00"]
[BlackClock "0:00:00"]

1. Nf3 {[%clk 0:00:01]}  d5 {[%clk 0:00:01]} 2. b3 {[%clk 0:00:01]}  Nf6 {[%clk 0:00:01]} 3. c4 {[%clk 0:00:01]}  dxc4 {[%clk 0:00:01]} 4. bxc4 {[%clk 0:00:01]}  e5 {[%clk 0:00:01]} 5. d3 {[%clk 0:00:01]}  e4 {[%clk 0:00:01]} 6. Nfd2 {[%clk 0:00:01]}  Bc5 {[%clk 0:00:01]} 7. Nb3 {[%clk 0:00:01]}  Bd4 {[%clk 0:00:00]} 8. Nxd4 {[%clk 0:00:01]}  Qxd4 {[%clk 0:00:00]} 9. Qa4+ {[%clk 0:00:01]}  Bd7 {[%clk 0:00:00]} 10. Qb3 {[%clk 0:00:01]}  Qxa1 {[%clk 0:00:00]} 11. Qxb7 {[%clk 0:00:00]}  O-O {[%clk 0:00:00]} 12. Bd2 {[%clk 0:00:00]}  Bc6 {[%clk 0:00:00]} 13. Qb3 {[%clk 0:00:00]}  Qe5 {[%clk 0:00:00]} 14. Bc3 {[%clk 0:00:00]}  Qf5 {[%clk 0:00:00]} 15. d4 {[%clk 0:00:00]}  e3 {[%clk 0:00:00]} 16. f3 {[%clk 0:00:00]}  Nbd7 {[%clk 0:00:00]} 17. g4 {[%clk 0:00:00]}  Qg6 {[%clk 0:00:00]} 18. Qd1 {[%clk 0:00:00]}  Ba4 {[%clk 0:00:00]} 19. Qc1 {[%clk 0:00:00]}  Rab8 {[%clk 0:00:00]} 20. Na3 {[%clk 0:00:00]}  Rfe8 {[%clk 0:00:00]} 21. h4 {[%clk 0:00:00]}  h5 {[%clk 0:00:00]} 22. g5 {[%clk 0:00:00]}  Nh7 {[%clk 0:00:00]} 23. Bh3 {[%clk 0:00:00]}  Nhf8 {[%clk 0:00:00]} 24. O-O {[%clk 0:00:00]}  Qd6 {[%clk 0:00:00]} 25. c5 {[%clk 0:00:00]}  Qg3+ {[%clk 0:00:00]} 26. Bg2 {[%clk 0:00:00]}  Ng6 {[%clk 0:00:00]} 27. Be1 {[%clk 0:00:00]}  Qf4 {[%clk 0:00:00]} 28. Nc4 {[%clk 0:00:00]}  Nxh4 {[%clk 0:00:00]} 29. Bxh4 {[%clk 0:00:00]}  Qxh4 {[%clk 0:00:00]} 30. Nxe3 {[%clk 0:00:00]}  Qxg5 {[%clk 0:00:00]} 31. f4 {[%clk 0:00:00]}  Qg6 {[%clk 0:00:00]} 32. f5 {[%clk 0:00:00]}  Qg5 {[%clk 0:00:00]} 33. Nd5 {[%clk 0:00:00]}  Qxc1 {[%clk 0:00:00]} 34. Rxc1 {[%clk 0:00:00]}  Rbc8 {[%clk 0:00:00]} 35. e4 {[%clk 0:00:00]}  Bc6 {[%clk 0:00:00]} 36. Nf4 {[%clk 0:00:00]}  Bxe4 {[%clk 0:00:00]} 37. Bh3 {[%clk 0:00:00]}  Nf6 {[%clk 0:00:00]} 38. d5 {[%clk 0:00:00]}  Bxd5 {[%clk 0:00:00]} 39. Bf1 {[%clk 0:00:00]}  c6 {[%clk 0:00:00]} 40. Bd3 {[%clk 0:00:00]}  Re3 {[%clk 0:00:00]} 41. Kf2 {[%clk 0:00:00]}  Rf3+ {[%clk 0:00:00]} 42. Ke2 {[%clk 0:00:00]}  Rxf4 {[%clk 0:00:00]} 43. Rb1 {[%clk 0:00:00]}  Re8+ {[%clk 0:00:00]} 44. Kd2 {[%clk 0:00:00]}  Rf2+ {[%clk 0:00:00]} 45. Kc3 {[%clk 0:00:00]}  Rf3 {[%clk 0:00:00]} 46. Kd4 {[%clk 0:00:00]}  Ree3 {[%clk 0:00:00]} 47. Rb8+ {[%clk 0:00:00]}  Kh7 {[%clk 0:00:00]} 48. Bc2 {[%clk 0:00:00]}  Rc3 {[%clk 0:00:00]} 49. Rb2 {[%clk 0:00:00]}  Rc4+ {[%clk 0:00:00]} 50. Ke5 {[%clk 0:00:00]}  Ne8 {[%clk 0:00:00]} 51. f6+ {[%clk 0:00:00]}  g6 {[%clk 0:00:00]} 52. Bxg6+ {[%clk 0:00:00]}  Kxg6 {[%clk 0:00:00]} 53. Rg2+ {[%clk 0:00:00]}  Kh6 {[%clk 0:00:00]} 54. Rg8 {[%clk 0:00:00]}  Re3+ {[%clk 0:00:00]} 55. Kf5 {[%clk 0:00:00]}  Be6# {[%clk 0:00:00]} 0-1


[Site "https://www.chess.com"]

[Event "Titled Tuesday Blitz May 2 Late 2023"]
[White "Pantev, Veselin"]
[Black "Fajdetic, Hrvoje"]
[WhiteFideId "2901390"]
[BlackFideId "14501945"]
[WhiteElo "2427"]
[BlackElo "2185"]
[Result "1/2-1/2"]
[Round "01"]
[TimeControl "180+2"]
[Date "2023.05.02"]
[WhiteClock "0:00:00"]
[BlackClock "0:00:00"]

1. d4 {[%clk 0:00:01]}  e6 {[%clk 0:00:01]} 2. Nf3 {[%clk 0:00:01]}  f5 {[%clk 0:00:01]} 3. g3 {[%clk 0:00:01]}  Nf6 {[%clk 0:00:01]} 4. Bg2 {[%clk 0:00:01]}  Be7 {[%clk 0:00:01]} 5. c3 {[%clk 0:00:01]}  O-O {[%clk 0:00:01]} 6. Qb3 {[%clk 0:00:01]}  d5 {[%clk 0:00:01]} 7. Nbd2 {[%clk 0:00:01]}  c6 {[%clk 0:00:01]} 8. Ne5 {[%clk 0:00:01]}  b6 {[%clk 0:00:01]} 9. Ndf3 {[%clk 0:00:01]}  Ba6 {[%clk 0:00:01]} 10. Nd3 {[%clk 0:00:01]}  c5 {[%clk 0:00:01]} 11. Qd1 {[%clk 0:00:01]}  Ne4 {[%clk 0:00:01]} 12. O-O {[%clk 0:00:01]}  Nc6 {[%clk 0:00:01]} 13. a3 {[%clk 0:00:01]}  cxd4 {[%clk 0:00:01]} 14. cxd4 {[%clk 0:00:01]}  Rc8 {[%clk 0:00:01]} 15. Qa4 {[%clk 0:00:01]}  Bb7 {[%clk 0:00:01]} 16. Nfe5 {[%clk 0:00:01]}  Na5 {[%clk 0:00:01]} 17. f3 {[%clk 0:00:01]}  Nd6 {[%clk 0:00:01]} 18. Qd1 {[%clk 0:00:01]}  Ndc4 {[%clk 0:00:00]} 19. b3 {[%clk 0:00:01]}  Nxe5 {[%clk 0:00:00]} 20. Nxe5 {[%clk 0:00:01]}  Rc3 {[%clk 0:00:00]} 21. Bd2 {[%clk 0:00:01]}  Rc7 {[%clk 0:00:00]} 22. Nd3 {[%clk 0:00:01]}  Nc6 {[%clk 0:00:00]} 23. Bc3 {[%clk 0:00:01]}  Qc8 {[%clk 0:00:00]} 24. Bb2 {[%clk 0:00:01]}  Ba6 {[%clk 0:00:00]} 25. b4 {[%clk 0:00:01]}  Bc4 {[%clk 0:00:00]} 26. Qd2 {[%clk 0:00:01]}  Bf6 {[%clk 0:00:00]} 27. Ne5 {[%clk 0:00:01]}  Nxe5 {[%clk 0:00:00]} 28. dxe5 {[%clk 0:00:01]}  Be7 {[%clk 0:00:00]} 29. Bd4 {[%clk 0:00:01]}  Rc6 {[%clk 0:00:00]} 30. f4 {[%clk 0:00:01]}  Qa6 {[%clk 0:00:00]} 31. Bf3 {[%clk 0:00:01]}  Rfc8 {[%clk 0:00:00]} 32. Rfc1 {[%clk 0:00:01]}  Bb5 {[%clk 0:00:00]} 33. Rxc6 {[%clk 0:00:01]}  Rxc6 {[%clk 0:00:00]} 34. Rc1 {[%clk 0:00:01]}  Qc8 {[%clk 0:00:00]} 35. Rxc6 {[%clk 0:00:00]}  Qxc6 {[%clk 0:00:00]} 36. Qc3 {[%clk 0:00:00]}  Qxc3 {[%clk 0:00:00]} 37. Bxc3 {[%clk 0:00:01]}  a5 {[%clk 0:00:00]} 38. g4 {[%clk 0:00:00]}  g6 {[%clk 0:00:00]} 39. h3 {[%clk 0:00:00]}  Kf7 {[%clk 0:00:00]} 40. Kf2 {[%clk 0:00:00]}  axb4 {[%clk 0:00:00]} 41. Bxb4 {[%clk 0:00:00]}  Bc5+ {[%clk 0:00:00]} 42. e3 {[%clk 0:00:00]}  Ke7 {[%clk 0:00:00]} 43. h4 {[%clk 0:00:00]}  fxg4 {[%clk 0:00:00]} 44. Bxg4 {[%clk 0:00:00]}  h5 {[%clk 0:00:00]} 45. Bd1 {[%clk 0:00:00]}  Bd3 {[%clk 0:00:00]} 46. Kf3 {[%clk 0:00:00]}  Kd7 {[%clk 0:00:00]} 47. Ba4+ {[%clk 0:00:00]}  Kc7 {[%clk 0:00:00]} 48. Be8 {[%clk 0:00:00]}  Bf5 {[%clk 0:00:00]} 49. Ke2 {[%clk 0:00:00]}  Kb7 {[%clk 0:00:00]} 50. Bb5 {[%clk 0:00:00]}  Kc7 {[%clk 0:00:00]} 51. Kd2 {[%clk 0:00:00]}  Kb7 {[%clk 0:00:00]} 52. Be2 {[%clk 0:00:00]}  Kc7 {[%clk 0:00:00]} 53. Bf1 {[%clk 0:00:00]}  Kc6 {[%clk 0:00:00]} 54. Be2 {[%clk 0:00:00]}  Kc7 {[%clk 0:00:00]} 55. Ba6 {[%clk 0:00:00]}  Kc6 {[%clk 0:00:00]} 56. Bf1 {[%clk 0:00:00]}  Kc7 {[%clk 0:00:00]} 57. Bg2 {[%clk 0:00:00]}  Kc6 {[%clk 0:00:00]} 58. Bf1 {[%clk 0:00:00]}  Kc7 {[%clk 0:00:00]} 59. Be2 {[%clk 0:00:00]}  Kc6 {[%clk 0:00:00]} 60. Ba6 {[%clk 0:00:00]}  Kc7 {[%clk 0:00:00]} 61. Bb5 {[%clk 0:00:00]}  Kb7 {[%clk 0:00:00]} 62. Ke2 {[%clk 0:00:00]}  Kc7 {[%clk 0:00:00]} 63. Kf3 {[%clk 0:00:00]}  Kb7 {[%clk 0:00:00]} 64. Ke2 {[%clk 0:00:00]} 1/2-1/2


[Site "https://www.chess.com"]

[Event "Titled Tuesday Blitz May 2 Late 2023"]
[White "Osinenko, Anton"]
[Black "Bogaudinov, Rushan"]
[WhiteFideId "4158970"]
[BlackFideId "4129288"]
[WhiteElo "2294"]
[BlackElo "1967"]
[Result "1-0"]
[Round "01"]
[TimeControl "180+2"]
[Date "2023.05.02"]
[WhiteClock "0:00:00"]
[BlackClock "0:00:00"]

1. e4 {[%clk 0:00:01]}  c5 {[%clk 0:00:01]} 2. Nf3 {[%clk 0:00:01]}  e6 {[%clk 0:00:01]} 3. c3 {[%clk 0:00:01]}  d5 {[%clk 0:00:01]} 4. exd5 {[%clk 0:00:01]}  Qxd5 {[%clk 0:00:01]} 5. Na3 {[%clk 0:00:01]}  a6 {[%clk 0:00:01]} 6. Nc2 {[%clk 0:00:01]}  Nf6 {[%clk 0:00:01]} 7. d4 {[%clk 0:00:01]}  Nc6 {[%clk 0:00:01]} 8. h3 {[%clk 0:00:01]}  Be7 {[%clk 0:00:01]} 9. Be2 {[%clk 0:00:01]}  O-O {[%clk 0:00:01]} 10. Be3 {[%clk 0:00:01]}  cxd4 {[%clk 0:00:01]} 11. Ncxd4 {[%clk 0:00:01]}  b5 {[%clk 0:00:01]} 12. Nxc6 {[%clk 0:00:01]}  Qxc6 {[%clk 0:00:01]} 13. Ne5 {[%clk 0:00:01]}  Qc7 {[%clk 0:00:01]} 14. Bf3 {[%clk 0:00:01]}  Bb7 {[%clk 0:00:01]} 15. Bxb7 {[%clk 0:00:01]}  Qxb7 {[%clk 0:00:01]} 16. O-O {[%clk 0:00:01]}  Rfd8 {[%clk 0:00:01]} 17. Qb3 {[%clk 0:00:01]}  Qd5 {[%clk 0:00:01]} 18. Nf3 {[%clk 0:00:01]}  Rac8 {[%clk 0:00:00]} 19. Rfd1 {[%clk 0:00:01]}  Qxb3 {[%clk 0:00:00]} 20. Rxd8+ {[%clk 0:00:01]}  Rxd8 {[%clk 0:00:00]} 21. axb3 {[%clk 0:00:01]}  Ra8 {[%clk 0:00:00]} 22. Nd4 {[%clk 0:00:01]}  b4 {[%clk 0:00:00]} 23. Nc6 {[%clk 0:00:00]}  Bf8 {[%clk 0:00:00]} 24. cxb4 {[%clk 0:00:00]}  Nd5 {[%clk 0:00:00]} 25. b5 {[%clk 0:00:00]}  a5 {[%clk 0:00:00]} 26. Rxa5 {[%clk 0:00:00]}  Rxa5 {[%clk 0:00:00]} 27. Nxa5 {[%clk 0:00:00]}  Bb4 {[%clk 0:00:00]} 28. Nc4 {[%clk 0:00:00]}  Kf8 {[%clk 0:00:00]} 29. b6 {[%clk 0:00:00]}  Nxb6 {[%clk 0:00:00]} 30. Bxb6 {[%clk 0:00:00]}  Ke7 {[%clk 0:00:00]} 31. Bd4 {[%clk 0:00:00]}  f6 {[%clk 0:00:00]} 32. Bc3 {[%clk 0:00:00]}  Bc5 {[%clk 0:00:00]} 33. b4 {[%clk 0:00:00]}  Ba7 {[%clk 0:00:00]} 34. b5 {[%clk 0:00:00]}  e5 {[%clk 0:00:00]} 35. Ba5 {[%clk 0:00:00]}  Ke6 {[%clk 0:00:00]} 36. Bc7 {[%clk 0:00:00]}  Kd5 {[%clk 0:00:00]} 37. b6 {[%clk 0:00:00]}  Bxb6 {[%clk 0:00:00]} 38. Nxb6+ {[%clk 0:00:00]}  Kc6 {[%clk 0:00:00]} 39. Bd8 {[%clk 0:00:00]}  Kb5 {[%clk 0:00:00]} 40. f3 {[%clk 0:00:00]}  Kb4 {[%clk 0:00:00]} 41. Kf2 {[%clk 0:00:00]}  Kb3 {[%clk 0:00:00]} 42. Nd7 {[%clk 0:00:00]}  Kxb2 {[%clk 0:00:00]} 43. Nf8 {[%clk 0:00:00]}  Kc3 {[%clk 0:00:00]} 44. Nxh7 {[%clk 0:00:00]}  Kd4 {[%clk 0:00:00]} 45. Nf8 {[%clk 0:00:00]}  Kd5 {[%clk 0:00:00]} 46. Bc7 {[%clk 0:00:00]}  Kc6 {[%clk 0:00:00]} 47. Ba5 {[%clk 0:00:00]}  Kd5 {[%clk 0:00:00]} 48. Bb4 {[%clk 0:00:00]}  f5 {[%clk 0:00:00]} 49. g4 {[%clk 0:00:00]}  f4 {[%clk 0:00:00]} 50. h4 {[%clk 0:00:00]}  e4 {[%clk 0:00:00]} 51. Bc3 {[%clk 0:00:00]}  e3+ {[%clk 0:00:00]} 52. Ke2 {[%clk 0:00:00]}  g5 {[%clk 0:00:00]} 53. h5 {[%clk 0:00:00]}  Kd6 {[%clk 0:00:00]} 54. h6 {[%clk 0:00:00]}  Ke7 {[%clk 0:00:00]} 55. h7 {[%clk 0:00:00]}  Kf7 {[%clk 0:00:00]} 56. h8=Q {[%clk 0:00:00]}  Ke7 {[%clk 0:00:00]} 57. Qf6+ {[%clk 0:00:00]}  Ke8 {[%clk 0:00:00]} 58. Qg7 {[%clk 0:00:00]}  Kd8 {[%clk 0:00:00]} 59. Qd7# {[%clk 0:00:00]} 1-0


[Site "https://www.chess.com"]

[Event "Titled Tuesday Blitz May 2 Late 2023"]
[White "Aldokhin, Ivan"]
[Black "Kujawski, Adam"]
[WhiteFideId "24115720"]
[BlackFideId "1100920"]
[WhiteElo "2322"]
[BlackElo "2054"]
[Result "1-0"]
[Round "01"]
[TimeControl "180+2"]
[Date "2023.05.02"]
[WhiteClock "0:00:00"]
[BlackClock "0:00:00"]

1. e4 {[%clk 0:00:01]}  e5 {[%clk 0:00:01]} 2. Nf3 {[%clk 0:00:01]}  Nc6 {[%clk 0:00:01]} 3. Bb5 {[%clk 0:00:01]}  a6 {[%clk 0:00:01]} 4. Ba4 {[%clk 0:00:01]}  Nf6 {[%clk 0:00:01]} 5. O-O {[%clk 0:00:01]}  Be7 {[%clk 0:00:01]} 6. Re1 {[%clk 0:00:01]}  b5 {[%clk 0:00:01]} 7. Bb3 {[%clk 0:00:01]}  O-O {[%clk 0:00:01]} 8. d4 {[%clk 0:00:01]}  exd4 {[%clk 0:00:01]} 9. e5 {[%clk 0:00:01]}  Ne8 {[%clk 0:00:01]} 10. Bd5 {[%clk 0:00:01]}  Bb7 {[%clk 0:00:01]} 11. Nxd4 {[%clk 0:00:01]}  Rb8 {[%clk 0:00:01]} 12. Bxc6 {[%clk 0:00:01]}  dxc6 {[%clk 0:00:01]} 13. Nc3 {[%clk 0:00:01]}  g6 {[%clk 0:00:01]} 14. Qg4 {[%clk 0:00:01]}  Ng7 {[%clk 0:00:00]} 15. Bh6 {[%clk 0:00:01]}  c5 {[%clk 0:00:00]} 16. Nf3 {[%clk 0:00:01]}  Bc8 {[%clk 0:00:00]} 17. Qf4 {[%clk 0:00:01]}  Ne6 {[%clk 0:00:00]} 18. Qe3 {[%clk 0:00:01]}  Re8 {[%clk 0:00:00]} 19. Rad1 {[%clk 0:00:00]}  Nd4 {[%clk 0:00:00]} 20. Nxd4 {[%clk 0:00:00]}  cxd4 {[%clk 0:00:00]} 21. Rxd4 {[%clk 0:00:00]}  Bd6 {[%clk 0:00:00]} 22. Qd2 {[%clk 0:00:00]}  Qe7 {[%clk 0:00:00]} 23. Nd5 {[%clk 0:00:00]}  Qe6 {[%clk 0:00:00]} 24. Nf6+ {[%clk 0:00:00]}  Kh8 {[%clk 0:00:00]} 25. Nxe8 {[%clk 0:00:00]} 1-0


[Site "https://www.chess.com"]

[Event "Titled Tuesday Blitz May 2 Late 2023"]
[White "Ocelak, Jakub"]
[Black "Lenaerts, Lennert"]
[WhiteFideId "23707933"]
[BlackFideId "211435"]
[WhiteElo "2044"]
[BlackElo "2334"]
[Result "1-0"]
[Round "01"]
[TimeControl "180+2"]
[Date "2023.05.02"]
[WhiteClock "0:00:00"]
[BlackClock "0:00:00"]

1. b3 {[%clk 0:00:01]}  e5 {[%clk 0:00:01]} 2. Bb2 {[%clk 0:00:01]}  Nc6 {[%clk 0:00:01]} 3. e3 {[%clk 0:00:01]}  Nf6 {[%clk 0:00:01]} 4. Nf3 {[%clk 0:00:01]}  e4 {[%clk 0:00:01]} 5. Nd4 {[%clk 0:00:01]}  Nxd4 {[%clk 0:00:01]} 6. Bxd4 {[%clk 0:00:01]}  d5 {[%clk 0:00:01]} 7. c4 {[%clk 0:00:01]}  c5 {[%clk 0:00:01]} 8. Bxf6 {[%clk 0:00:01]}  Qxf6 {[%clk 0:00:01]} 9. Nc3 {[%clk 0:00:01]}  dxc4 {[%clk 0:00:01]} 10. Bxc4 {[%clk 0:00:01]}  Qe5 {[%clk 0:00:01]} 11. Bb5+ {[%clk 0:00:01]}  Bd7 {[%clk 0:00:01]} 12. Bxd7+ {[%clk 0:00:01]}  Kxd7 {[%clk 0:00:01]} 13. f3 {[%clk 0:00:01]}  exf3 {[%clk 0:00:01]} 14. Qxf3 {[%clk 0:00:01]}  Kc8 {[%clk 0:00:01]} 15. Qxf7 {[%clk 0:00:01]}  Bd6 {[%clk 0:00:01]} 16. Qd5 {[%clk 0:00:01]}  Rf8 {[%clk 0:00:01]} 17. Qxe5 {[%clk 0:00:01]}  Bxe5 {[%clk 0:00:01]} 18. Rc1 {[%clk 0:00:01]}  Kd7 {[%clk 0:00:01]} 19. Ke2 {[%clk 0:00:01]}  b6 {[%clk 0:00:01]} 20. g3 {[%clk 0:00:01]}  Ke6 {[%clk 0:00:01]} 21. Rhf1 {[%clk 0:00:01]}  Rxf1 {[%clk 0:00:01]} 22. Rxf1 {[%clk 0:00:01]}  h6 {[%clk 0:00:01]} 23. Ne4 {[%clk 0:00:01]}  a5 {[%clk 0:00:01]} 24. a4 {[%clk 0:00:01]}  Rc8 {[%clk 0:00:00]} 25. d3 {[%clk 0:00:01]}  Rb8 {[%clk 0:00:00]} 26. Rc1 {[%clk 0:00:00]}  h5 {[%clk 0:00:00]} 27. Rf1 {[%clk 0:00:00]}  h4 {[%clk 0:00:00]} 28. Ng5+ {[%clk 0:00:00]}  Kd5 {[%clk 0:00:00]} 29. Rf5 {[%clk 0:00:00]}  hxg3 {[%clk 0:00:00]} 30. hxg3 {[%clk 0:00:00]}  Kd6 {[%clk 0:00:00]} 31. Nf7+ {[%clk 0:00:00]}  Ke6 {[%clk 0:00:00]} 32. Rxe5+ {[%clk 0:00:00]}  Kxf7 {[%clk 0:00:00]} 33. d4 {[%clk 0:00:00]}  Kf6 {[%clk 0:00:00]} 34. Kd3 {[%clk 0:00:00]}  Rh8 {[%clk 0:00:00]} 35. g4 {[%clk 0:00:00]}  Rh3 {[%clk 0:00:00]} 36. Kc4 {[%clk 0:00:00]}  cxd4 {[%clk 0:00:00]} 37. exd4 {[%clk 0:00:00]}  Rg3 {[%clk 0:00:00]} 38. Re4 {[%clk 0:00:00]}  Kg5 {[%clk 0:00:00]} 39. d5 {[%clk 0:00:00]}  Rg1 {[%clk 0:00:00]} 40. Rd4 {[%clk 0:00:00]}  Rc1+ {[%clk 0:00:00]} 41. Kb5 {[%clk 0:00:00]}  Rc3 {[%clk 0:00:00]} 42. Kxb6 {[%clk 0:00:00]}  Rxb3+ {[%clk 0:00:00]} 43. Kxa5 {[%clk 0:00:00]}  Rd3 {[%clk 0:00:00]} 44. Rxd3 {[%clk 0:00:00]} 1-0


[Site "https://www.chess.com"]

[Event "Titled Tuesday Blitz May 2 Late 2023"]
[White "Manon-og, Ramon Jr."]
[Black "Lee, Linden"]
[WhiteFideId "5200776"]
[BlackFideId "30941830"]
[WhiteElo "1999"]
[BlackElo "1985"]
[Result "1-0"]
[Round "01"]
[TimeControl "180+2"]
[Date "2023.05.02"]
[WhiteClock "0:00:00"]
[BlackClock "0:00:00"]

1. e4 {[%clk 0:00:01]}  c6 {[%clk 0:00:01]} 2. d4 {[%clk 0:00:01]}  d5 {[%clk 0:00:01]} 3. e5 {[%clk 0:00:01]}  Bf5 {[%clk 0:00:01]} 4. Nd2 {[%clk 0:00:01]}  e6 {[%clk 0:00:01]} 5. Nb3 {[%clk 0:00:01]}  Nd7 {[%clk 0:00:01]} 6. Nf3 {[%clk 0:00:01]}  a6 {[%clk 0:00:01]} 7. Be2 {[%clk 0:00:01]}  Ne7 {[%clk 0:00:01]} 8. O-O {[%clk 0:00:01]}  h6 {[%clk 0:00:01]} 9. c4 {[%clk 0:00:01]}  dxc4 {[%clk 0:00:01]} 10. Bxc4 {[%clk 0:00:01]}  b5 {[%clk 0:00:01]} 11. Bd3 {[%clk 0:00:01]}  Bxd3 {[%clk 0:00:01]} 12. Qxd3 {[%clk 0:00:01]}  Nb6 {[%clk 0:00:01]} 13. Nc5 {[%clk 0:00:01]}  Nf5 {[%clk 0:00:01]} 14. Ne4 {[%clk 0:00:01]}  Be7 {[%clk 0:00:01]} 15. g4 {[%clk 0:00:01]}  Nh4 {[%clk 0:00:01]} 16. Nxh4 {[%clk 0:00:01]}  Bxh4 {[%clk 0:00:01]} 17. Nd6+ {[%clk 0:00:01]}  Kf8 {[%clk 0:00:01]} 18. f4 {[%clk 0:00:01]}  Be7 {[%clk 0:00:01]} 19. Ne4 {[%clk 0:00:01]}  c5 {[%clk 0:00:01]} 20. Be3 {[%clk 0:00:01]}  Nc4 {[%clk 0:00:01]} 21. Bf2 {[%clk 0:00:01]}  Nxb2 {[%clk 0:00:01]} 22. Qf3 {[%clk 0:00:01]}  g6 {[%clk 0:00:01]} 23. f5 {[%clk 0:00:01]}  gxf5 {[%clk 0:00:01]} 24. gxf5 {[%clk 0:00:01]}  Bh4 {[%clk 0:00:01]} 25. fxe6 {[%clk 0:00:01]}  Rg8+ {[%clk 0:00:01]} 26. Kh1 {[%clk 0:00:01]}  Rg7 {[%clk 0:00:01]} 27. Bxh4 {[%clk 0:00:01]}  Qxh4 {[%clk 0:00:01]} 28. exf7 {[%clk 0:00:01]}  cxd4 {[%clk 0:00:00]} 29. Nf6 {[%clk 0:00:01]}  Rd8 {[%clk 0:00:00]} 30. e6 {[%clk 0:00:01]}  Nc4 {[%clk 0:00:00]} 31. Qb7 {[%clk 0:00:00]}  Rg1+ {[%clk 0:00:00]} 32. Kxg1 {[%clk 0:00:00]}  Qg5+ {[%clk 0:00:00]} 33. Kh1 {[%clk 0:00:00]}  Qc5 {[%clk 0:00:00]} 34. Nd7+ {[%clk 0:00:00]}  Rxd7 {[%clk 0:00:00]} 35. exd7 {[%clk 0:00:00]}  Qd6 {[%clk 0:00:00]} 36. Qc8+ {[%clk 0:00:00]} 1-0


[Site "https://www.chess.com"]